Cogmind - Beta 15 @@@ ROGUE MODE // 2025.06.09 @ 19:06:03 Player: CheifClapdad Result: Destroyed by B-75 Beast with Magnetic Acceleration Cannon Performance ------------- Evolutions (5) 2500 Regions Visited (13) 2600 Robots Destroyed (153) 765 Value Destroyed (6980) 6980 Prototype IDs (11) 220 Alien Tech Used (0) 0 Bonus (4738) 4738 TOTAL SCORE: 17803 Bonus ------- Triggered High Security 500 High Alert Combat Kills 1839 Follower Combat Kills 933 Entered Garrisons 200 Used RIF Installer 500 Registered with UFD 300 Met Optimus in HQ 500 Friendly Fire -34 Cogmind --------- Core Integrity 0/1000 Matter 291/300 Energy 99/100 System Corruption 20% Temperature Cool (0) Movement Core (50) Location -5/Upper Caves Parts ------- > --- POWER (1) -------- (None) > --- PROPULSION (6) --- (None) > --- UTILITY (6) ------ (None) > --- WEAPON (4) ------- (None) > --- INVENTORY (5) ---- Scrap Suit Matter Compressor (250) Experimental Signal Interpreter Improved Utility Shielding Peak State ------------ > --- POWER ------------ Angular Momentum Engine > --- PROPULSION ------- Flexi-carbon Leg Flexi-carbon Leg Flexi-carbon Leg Flexi-carbon Leg Myomer Leg Armored Wheel > --- UTILITY ---------- Advanced Cooling System High-capacity Storage Unit Experimental Optical Array Improved Targeting Computer Improved Utility Shielding Improved Medium Armor Plating > --- WEAPON ----------- Gauss Rifle Railgun Railgun Railgun > --- INVENTORY -------- Cooled Ion Engine Light Antimatter Reactor Carbon-fiber Leg Scrap Suit High-capacity Matter Pod Matter Compressor Experimental Sensor Array Experimental Signal Interpreter Experimental Targeting Computer Improved Target Analyzer Improved Utility Shielding Improved Light Armor Plating EM Shield Improved Shield Generator Gauss Rifle Mini Grenade Launcher CPS Tube CPS Tube [Rating: 91] Favorites ----------- Power Cooled Ion Engine Engine Cooled Ion Engine Power Core Fission Core Propulsion Advanced Treads Treads Advanced Treads Leg Carbon-fiber Leg Wheel Armored Wheel Utility High-capacity Storage Unit Device Improved Heat Sink Storage High-capacity Storage Unit Processor Improved Targeting Computer Protection Improved Light Armor Plating Weapon Improved Assault Rifle Energy Gun Improved Medium Laser Energy Cannon Proton Cannon Ballistic Gun Improved Assault Rifle Ballistic Cannon Advanced Assault Cannon Launcher Mini Grenade Launcher Build | -11 -10 -9 -9 -9 -9 -6 -6 -6 -5 -5 -5 -5 -5 ------- Run | Yrd Mat Mat Sto Rec Scr Fac Low Zio Pro Fac Gar Fac Upp Slots Evolved 10 | . . 2 . . . 6 . . . 2 . . . Power . | . . . . . . . . . . . . . . Propulsion 4 | . . 1 . . . 3 . . . . . . . Utility 4 | . . . . . . 2 . . . 2 . . . Weapon 2 | . . 1 . . . 1 . . . . . . . Parts Attached 100 | 5 8 8 11 5 2 16 . 2 5 4 28 6 . Power 6 | . 1 1 1 . . 1 . . 1 . . 1 . Engine 5 | . 1 1 1 . . . . . 1 . . 1 . Core 1 | . . . . . . 1 . . . . . . . Reactor . | . . . . . . . . . . . . . . Propulsion 38 | 2 3 4 4 . . 7 . . . . 17 1 . Treads 10 | 1 1 1 . . . 7 . . . . . . . Leg 16 | . . . . . . . . . . . 15 1 . Wheel 12 | 1 2 3 4 . . . . . . . 2 . . Hover . | . . . . . . . . . . . . . . Flight . | . . . . . . . . . . . . . . Utility 24 | 1 2 1 1 2 . 6 . 1 2 2 4 2 . Device 5 | . . . . . . 1 . . 2 . 2 . . Storage 6 | 1 2 . . 1 . 1 . . . 1 . . . Processor 3 | . . . . . . 2 . 1 . . . . . Hackware . | . . . . . . . . . . . . . . Protection 10 | . . 1 1 1 . 2 . . . 1 2 2 . Artifact . | . . . . . . . . . . . . . . Weapon 32 | 2 2 2 5 3 2 2 . 1 2 2 7 2 . Energy Gun 6 | . 2 1 2 1 . . . . . . . . . Energy Cannon 1 | . . . . . . . . 1 . . . . . Ballistic Gun 16 | 2 . . 3 . 2 1 . . 1 . 5 2 . Ballistic Cannon 6 | . . 1 . . . 1 . . . 2 2 . . Launcher 3 | . . . . 2 . . . . 1 . . . . Special Weapon . | . . . . . . . . . . . . . . Impact Weapon . | . . . . . . . . . . . . . . Slashing Weapon . | . . . . . . . . . . . . . . Piercing Weapon . | . . . . . . . . . . . . . . Special Melee Weapon . | . . . . . . . . . . . . . . Unidentified Prototypes 5 | . . . 4 . . . . 1 . . . . . Corrupted Parts 1 | . . . . . . . . . . . 1 . . System Corruption 6 | . . . . . . . . . . . 6 . . Parts Lost 46 | . 5 2 1 . . . 3 . 3 . 17 15 . Power 3 | . . 1 . . . . . . 1 . . 1 . Propulsion 22 | . 3 . 1 . . . 1 . . . 11 6 . Utility 4 | . . . . . . . . . . . 1 3 . Weapon 17 | . 2 1 . . . . 2 . 2 . 5 5 . Highest Loss Streak 14 | . 2 2 1 . . . 1 . 2 . 4 14 . To Critical Strikes . | . . . . . . . . . . . . . . Average Backups 16 | 2 11 13 14 14 17 17 18 18 18 18 18 17 4 Power 1 | . . 1 1 2 2 2 2 2 1 1 1 1 . Propulsion 2 | 1 4 6 5 4 3 1 1 1 1 1 1 1 . Utility 8 | . 3 4 6 6 6 8 10 11 11 11 11 10 4 Weapon 2 | . 2 . . 2 3 3 2 2 1 2 2 1 . Tool/Special . | . . . . . . . . . . . . . . Unused Backups 38 | 1 2 2 8 . 3 2 . 2 . . 2 12 4 Power 6 | . . . 3 . 1 . . . . . . 2 . Propulsion 9 | 1 1 . 3 . 1 . . . . . 1 2 . Utility 16 | . 1 2 1 . 1 . . 2 . . . 5 4 Weapon 4 | . . . . . . 2 . . . . 1 1 . Tool/Special 3 | . . . 1 . . . . . . . . 2 . Average Slot Usage (%) 95 | . 89 92 97 99 100 99 98 99 95 99 94 90 . Engine 7 | . 14 6 11 11 11 4 . . 2 5 5 4 . Core 1 | . . . . . . 1 6 6 3 . . . . Treads 13 | . 13 11 11 11 11 25 26 26 26 23 2 . . Leg 5 | . . . . . . . . . . . 20 24 . Wheel 13 | . 7 22 21 22 22 13 13 13 13 11 5 4 . Device 1 | . . . . . . . . . 3 5 5 4 . Storage 9 | . 25 17 11 11 11 6 6 6 6 5 5 4 . Processor 6 | . . . . . . 12 13 19 15 11 11 10 . Protection 7 | . . 4 11 11 11 5 6 . . 10 10 10 . Energy Gun 3 | . 8 19 2 10 2 . . . . . . . . Ballistic Gun 18 | . 19 . 19 22 30 20 21 20 15 11 8 19 . Ballistic Cannon 3 | . . 10 9 . . 5 2 . . 9 9 1 . Peak Build Rating 91 | 5 8 17 24 25 28 59 59 63 63 65 81 91 2 Average Rating 42 | 4 7 12 21 24 25 51 57 61 57 64 68 82 2 On Entrance 34 | . 5 8 17 21 25 28 59 53 63 53 65 81 2 Naked Turns 214 | . . . . . . . . . . . . 64 150 Heaviest Build 88 | 8 31 36 44 60 61 76 76 76 72 76 84 88 . Greatest Support 122 | 20 20 26 22 22 22 122 110 22 104 104 110 105 3 Greatest Overweight (x) 10 | 1 10 1 3 2 2 3 3 3 3 3 8 . . Average Overweight (x) 1 | . 2 1 1 1 2 2 2 3 . 2 1 . . Largest Inventory Capacity 20 | 8 15 15 15 20 20 20 20 20 20 20 20 20 5 Average Capacity 18 | 7 14 15 15 18 20 20 20 20 20 20 20 18 5 Most Carried 20 | 4 15 15 15 15 20 20 20 20 20 20 20 20 5 Average Carried 17 | 2 11 13 14 14 17 18 19 19 19 19 19 18 5 Final Capacity 20 | 8 15 15 15 20 20 20 20 20 20 20 20 5 5 Final Carried 20 | 4 14 15 15 15 20 20 19 20 19 20 20 5 5 Class Distribution -------------------- 33% | Commander-Tank 24% | Gunner 16% | Mutant 13% | Scavenger-Tank 10% | Tank Dominant Class ---------------- Mutant | -10/Materials Scavenger-Tank | -9/Materials Tank | -9/Storage Commander-Tank | -9/Recycling Commander-Tank | -9/Scraptown Gunner | -6/Factory Gunner | -6/Lower Caves Gunner | -6/Zion Gunner | -5/Proximity Caves Tank | -5/Factory Scavenger-Tank | -5/Garrison Commander-Tank | -5/Factory Mutant | -5/Upper Caves Resources | -11 -10 -9 -9 -9 -9 -6 -6 -6 -5 -5 -5 -5 -5 ----------- Run | Yrd Mat Mat Sto Rec Scr Fac Low Zio Pro Fac Gar Fac Upp Matter Collected 6773 | 250 738 128 646 178 430 592 571 288 237 . 1924 763 28 Remotely . | . . . . . . . . . . . . . . Salvage Created 6167 | . 713 273 1138 352 . 702 578 . 236 41 1060 1074 . Parts 307 | . 44 16 70 15 . 40 24 . 9 4 35 50 . Haulers Intercepted 7 | . 2 . 4 . . 1 . . . . . . . Recyclers Shooed 3 | . 1 . . . . . . . . . . 2 . Parts Field Recycled . | . . . . . . . . . . . . . . Retrieved Matter . | . . . . . . . . . . . . . . Parts Self-Destructed 34 | . . . . . . . 28 . 6 . . . . Prevented 3 | . . . . . . . . . 3 . . . . Kills | -11 -10 -9 -9 -9 -9 -6 -6 -6 -5 -5 -5 -5 -5 ------- Run | Yrd Mat Mat Sto Rec Scr Fac Low Zio Pro Fac Gar Fac Upp Combat Hostiles Destroyed 128 | . 19 6 21 2 . 11 11 . 5 1 33 19 . Guns 76 | . 18 3 12 2 . 9 8 . 2 . 7 15 . Cannons 30 | . . 3 9 . . 2 3 . 2 1 9 1 . AOE 21 | . . . . . . . . . 1 . 17 3 . Classes Destroyed 19 | . 6 1 3 2 . 2 . . 2 . . 3 . Worker 6 | . 1 . 4 . . 1 . . . . . . . Builder 2 | . . . . . . 2 . . . . . . . Tunneler 2 | . 1 . . . . 1 . . . . . . . Hauler 7 | . 2 . 4 . . 1 . . . . . . . Recycler 3 | . . . . 3 . . . . . . . . . Mechanic 2 | . . . . . . . . . . . . 2 . Drone 1 | . . . . . . . . . 1 . . . . Watcher 2 | . 1 . 1 . . . . . . . . . . Swarmer 26 | . 9 . 3 . . . 1 . . . 9 4 . Saboteur 1 | . . . . . . . . . . . . 1 . Grunt 58 | . 10 2 8 1 . 4 8 . 2 . 17 6 . Brawler 4 | . . . 1 . . 1 . . . . . 2 . Duelist 2 | . . . 1 . . . . . 1 . . . . Protector 4 | . . . 1 1 . 2 . . . . . . . Sentry 16 | . . 4 7 . . 1 1 . . . 2 1 . Specialist 3 | . . . . . . . . . . . . 3 . Hunter 7 | . . . . 1 . 1 . . . . 5 . . Programmer 6 | . . . . . . 2 1 . . 1 . 2 . Behemoth 1 | . . . . . . . . . 1 . . . . Best Kill Streak 7 | . 4 4 6 2 . 4 3 . 2 1 7 6 . Combat Bots Only 7 | . 4 4 4 2 . 4 3 . 2 1 7 4 . Max Kills in Single Turn 4 | . 1 1 2 1 . 3 1 . 1 1 4 4 . Gunslinging . | . . . . . . . . . . . . . . Exploded 3 | . . . . . . . . . 1 . 3 2 . Melee . | . . . . . . . . . . . . . . Uniques/NPCs Destroyed . | . . . . . . . . . . . . . . Combat | -11 -10 -9 -9 -9 -9 -6 -6 -6 -5 -5 -5 -5 -5 -------- Run | Yrd Mat Mat Sto Rec Scr Fac Low Zio Pro Fac Gar Fac Upp Hostile Shots Fired 797 | . 117 30 54 4 . 68 98 . 50 6 143 215 12 Missed 239 | . 28 12 15 1 . 21 30 . 20 1 31 77 3 Hits 558 | . 89 18 39 3 . 47 68 . 30 5 112 138 9 Melee 2 | . . . . 1 . . . . . . . 1 . Projectile 556 | . 89 18 39 2 . 47 68 . 30 5 112 137 9 Critical Strikes 19 | . 2 . 1 1 . 3 3 . 1 . 4 4 . Part Disruptions 1 | . . . . . . . . . . . . 1 . Damage Taken 9503 | . 844 272 532 69 . 696 871 . 815 106 2327 2789 182 Core 1571 | . 185 . 79 . . 15 38 . 240 . 288 544 182 Absorbed by Shields 149 | . . . . 10 . 139 . . . . . . . Redirected to Shielding 101 | . . . . . . . . . . . 22 79 . Regen/Repaired (Parts) 266 | . . . . . . 93 . 173 . . . . . Core Remaining (%) 67 | 100 26 . . . 80 . . . 65 . . . . Volleys Fired 355 | . 82 17 55 10 . 28 30 . 13 4 77 39 . Largest 4 | . 2 3 3 3 . 4 4 . 4 4 4 4 . Hottest 166 | . 90 145 145 102 . 118 118 . 166 128 156 145 . Shots Fired 1074 | . 161 41 163 30 . 112 103 . 50 15 251 148 . Gun 782 | . 161 24 109 30 . 84 91 . 33 8 106 136 . Cannon 272 | . . 17 54 . . 28 12 . 13 7 131 10 . Launcher 20 | . . . . . . . . . 4 . 14 2 . Special . | . . . . . . . . . . . . . . Kinetic 932 | . 103 17 147 20 . 112 103 . 33 14 237 146 . Thermal 108 | . 58 24 16 10 . . . . . . . . . Explosive 20 | . . . . . . . . . 4 . 14 2 . Electromagnetic 14 | . . . . . . . . . 13 1 . . . Robot Hit Streak 16 | . 16 9 11 3 . 15 12 . 7 2 13 12 . Robot Miss Streak 6 | . 6 3 3 1 . 3 5 . 3 5 4 3 . Penetration Max 2 | . . . . . . 1 . . . . 1 2 . Secondary Targets 10 | . 3 . . . . . 3 . . . . 4 . Max Gunslinging Chain 1 | . 1 . . . . . 1 . . . . 1 . Shots Hit Robots 648 | . 101 24 99 17 . 69 65 . 31 5 145 92 . Core Hits 326 | . 36 12 47 7 . 27 30 . 13 2 92 60 . Critical Kills 5 | . . . . . . 4 1 . . . . . . Critical Parts Destroyed 12 | . . . 2 . . 5 4 . . . . 1 . Critical Strikes 29 | . 2 . 3 . . 11 5 . . . 6 2 . Burn 2 | . 2 . . . . . . . . . . . . Destroy 17 | . . . 2 . . 9 5 . . . . 1 . Blast 10 | . . . 1 . . 2 . . . . 6 1 . Melee Attacks . | . . . . . . . . . . . . . . Impact . | . . . . . . . . . . . . . . Slashing . | . . . . . . . . . . . . . . Piercing . | . . . . . . . . . . . . . . Sneak Attacks . | . . . . . . . . . . . . . . Combat Hostiles . | . . . . . . . . . . . . . . Follow-up Attacks . | . . . . . . . . . . . . . . Damage Inflicted 16082 | . 1113 359 1694 400 . 1604 1175 . 611 130 5264 3732 . Guns 9191 | . 1113 194 1155 354 . 994 998 . 261 63 1329 2730 . Cannons 3343 | . . 165 539 . . 372 177 . 129 67 1753 141 . Explosions 3334 | . . . . . . 238 . . 221 . 2014 861 . Melee . | . . . . . . . . . . . . . . Ramming 214 | . . . . 46 . . . . . . 168 . . Kinetic 11573 | . 686 165 1578 259 . 1366 1175 . 261 130 3082 2871 . Thermal 985 | . 427 194 116 95 . 153 . . . . . . . Explosive 3181 | . . . . . . 85 . . 221 . 2014 861 . Electromagnetic 129 | . . . . . . . . . 129 . . . . Impact . | . . . . . . . . . . . . . . Slashing . | . . . . . . . . . . . . . . Piercing . | . . . . . . . . . . . . . . Highest Corruption 20 | . . . 2 2 . 3 4 4 . 1 7 20 20 Average Corruption 3 | . . . 2 2 . 2 3 4 . 1 3 8 20 Corruption Purged . | . . . . . . . . . . . . . . Corruption Blocked . | . . . . . . . . . . . . . . Effects 175 | . . . 9 26 . 12 25 1 . 1 64 32 5 Message Errors 38 | . . . 2 6 . 1 6 . . . 17 5 1 Matter Fused 45 | . . . 2 7 . 4 8 1 . 1 17 4 1 Heat Flow Errors 15 | . . . . 1 . 2 2 . . . 4 4 2 Energy Discharges 26 | . . . 2 3 . 3 5 . . . 7 5 1 Data Loss (minor) 26 | . . . . 4 . . 2 . . . 11 9 . Data Loss (major) 11 | . . . 1 3 . . 1 . . . 5 1 . Misfires 2 | . . . 1 . . 1 . . . . . . . Alerts 4 | . . . 1 2 . . . . . . 1 . . Misdirections 1 | . . . . . . . . . . . . 1 . Weapon Failures 7 | . . . . . . 1 1 . . . 2 3 . Overload Shots . | . . . . . . . . . . . . . . Overflow Damage 157 | . . . . . . 78 . . . . 61 18 . Projectiles 28 | . . . . . . . . . . . 28 . . Explosions 129 | . . . . . . 78 . . . . 33 18 . Melee . | . . . . . . . . . . . . . . Knockbacks 36 | . . . 1 . . 2 3 . . . 30 . . Impact 7 | . . . . . . . . . . . 7 . . Kinetic 26 | . . . 1 . . 2 3 . . . 20 . . Secondary 3 | . . . . . . . . . . . 3 . . Self-Inflicted Damage 283 | . . . . 22 . . . . . . 192 69 . Shots 10 | . . . . . . . . . . . 8 2 . Rammed 2 | . . . . 2 . . . . . . . . . Targets Rammed 38 | . . . . 2 . . . . . . 36 . . Kicked 36 | . . . . . . . . . . . 36 . . Crushed . | . . . . . . . . . . . . . . Highest Temperature 555 | . 351 261 336 215 . 265 504 . 555 . 230 229 252 Average Temperature 84 | . 93 74 59 58 . 72 122 . 127 . 55 102 105 Received Heat Transfer 2615 | . 255 81 216 21 . 223 282 . 444 . 513 568 12 Effects 13 | . . . . . . . 8 . 4 . . 1 . Shutdowns 1 | . . . . . . . 1 . . . . . . Energy Bleed 2 | . . . . . . . 1 . . . . 1 . Interference 4 | . . . . . . . 3 . 1 . . . . Matter Decay 3 | . . . . . . . 2 . 1 . . . . Short Circuit 1 | . . . . . . . 1 . . . . . . Damage (minor) 1 | . . . . . . . . . 1 . . . . Damage (core) 1 | . . . . . . . . . 1 . . . . Siege Activations . | . . . . . . . . . . . . . . Martial Activations . | . . . . . . . . . . . . . . Shielding Activations . | . . . . . . . . . . . . . . Robots Disrupted . | . . . . . . . . . . . . . . Combat Hostiles . | . . . . . . . . . . . . . . Robots Corrupted . | . . . . . . . . . . . . . . Combat Hostiles . | . . . . . . . . . . . . . . Parts Fried . | . . . . . . . . . . . . . . Impact Corruptions . | . . . . . . . . . . . . . . Robots Melted 1 | . 1 . . . . . . . . . . . . Combat Hostiles 1 | . 1 . . . . . . . . . . . . Parts Melted 6 | . 5 1 . . . . . . . . . . . Heat Transferred 2468 | . 1229 543 333 213 . 150 . . . . . . . Parts Sabotaged . | . . . . . . . . . . . . . . Parts Stolen . | . . . . . . . . . . . . . . Parts Stripped . | . . . . . . . . . . . . . . Power Chain Reactions . | . . . . . . . . . . . . . . Alert | -11 -10 -9 -9 -9 -9 -6 -6 -6 -5 -5 -5 -5 -5 ------- Run | Yrd Mat Mat Sto Rec Scr Fac Low Zio Pro Fac Gar Fac Upp Maximum Alert Level 5 | . . . 2 . . . . . . 3 5 5 . Low Security (%) 54 | 100 100 100 14 100 . 100 . . . . . . . Level 1 5 | . . . 53 . . . . . . . 5 . . Level 2 7 | . . . 32 . . . . . . 60 13 . . Level 3 11 | . . . . . . . . . . 39 33 . . Level 4 5 | . . . . . . . . . . . 11 26 . Level 5 15 | . . . . . . . . . . . 36 66 . High Security . | . . . . . . . . . . . . 7 . Max Security . | . . . . . . . . . . . . . . Peak Influence 2739 | . 119 117 448 151 . 184 . . . 765 2739 2109 . Initial 1437 | . . 46 28 151 . . . . . 750 338 1437 . Average 605 | . 27 76 301 39 . 74 . . . 666 1365 1822 . Influence Increases 7430 | . 521 172 737 257 . 447 350 . 168 803 2631 1344 . Destroy 0b10 Robot/C 3020 | . 380 120 480 60 . 220 220 . 100 20 780 640 . Destroy 0b10 Robot/NC 170 | . 25 . 50 20 . 35 . . 5 . 20 15 . Destroy Leader 540 | . 86 50 130 . . 62 40 . 20 10 30 112 . Allied During Kill 450 | . . . 28 12 . 11 . . 13 . 99 287 . Successful Hack 19 | . . . . 15 . . . . . 4 . . . Select Force Hacks 150 | . . . . 150 . . . . . . . . . Disable Machine 180 | . . . . . . 75 . . . 15 . 90 . Anti-Garrison Action 1450 | . . . . . . . . . . . 1450 . . Destroy Structure 371 | . . 2 4 . . 44 . . . 4 237 80 . Advance Influence 750 | . . . . . . . . . . 750 . . . Partial Spotted 15 | . . . 15 . . . . . . . . . . Lose Combat Pursuer 315 | . 30 . 30 . . . 90 . 30 . 15 120 . Influence Decreases 6172 | . 410 215 416 592 54 321 449 27 168 320 375 1974 851 Entered New Map 2699 | . . 65 40 238 54 . 47 27 . . 145 1302 781 Time Decay 2535 | . 360 130 326 354 . 281 384 . 98 170 . 362 70 Search Patrol Dispatched 150 | . . . . . . . . . . 150 . . . Lost Part 428 | . 50 20 10 . . . 18 . 10 . 170 150 . Lost Ally 360 | . . . 40 . . 40 . . 60 . 60 160 . Squads Dispatched 30 | . 5 . 6 . . 6 . . . . . 13 . Investigation 6 | . 2 . 2 . . 2 . . . . . . . Extermination 3 | . . . . . . 1 . . . . . 2 . Reinforcement 11 | . 3 . 1 . . 3 . . . . . 4 . Assault 6 | . . . 2 . . . . . . . . 4 . Garrison 4 | . . . 1 . . . . . . . . 3 . Intercept . | . . . . . . . . . . . . . . Searches Triggered 1 | . . . . . . . . . . 1 . . . Construction Impeded 2 | . . . . . . 2 . . . . . . . Haulers Reinforced 3 | . . . . . . 1 . . . . . 2 . Active Scanning Responses . | . . . . . . . . . . . . . . Cargo Convoy Interrupts 1 | . . . . . . . . . . . . 1 . Stealth | -11 -10 -9 -9 -9 -9 -6 -6 -6 -5 -5 -5 -5 -5 --------- Run | Yrd Mat Mat Sto Rec Scr Fac Low Zio Pro Fac Gar Fac Upp Distress Signals 9 | . 2 . 3 . . 3 . . . . . 1 . Communications Jammed . | . . . . . . . . . . . . . . Distress Signals . | . . . . . . . . . . . . . . Times Spotted 214 | . 33 6 36 3 . 15 17 . 11 3 38 51 1 Peak Tracking Total 13 | . 4 3 8 1 . 5 4 . 4 1 6 13 1 Tactical Retreats 14 | . 2 . 1 . . . 6 . 2 . 1 2 . Traps | -11 -10 -9 -9 -9 -9 -6 -6 -6 -5 -5 -5 -5 -5 ------- Run | Yrd Mat Mat Sto Rec Scr Fac Low Zio Pro Fac Gar Fac Upp Traps Triggered 9 | . 2 . 3 . . 3 . . . . 1 . . Indirectly . | . . . . . . . . . . . . . . Trap Hack Attempts . | . . . . . . . . . . . . . . Triggered . | . . . . . . . . . . . . . . Disarmed . | . . . . . . . . . . . . . . Reprogrammed . | . . . . . . . . . . . . . . Reused . | . . . . . . . . . . . . . . Traps Extracted . | . . . . . . . . . . . . . . Installed . | . . . . . . . . . . . . . . Triggered . | . . . . . . . . . . . . . . Machines | -11 -10 -9 -9 -9 -9 -6 -6 -6 -5 -5 -5 -5 -5 ---------- Run | Yrd Mat Mat Sto Rec Scr Fac Low Zio Pro Fac Gar Fac Upp Machines Disabled 20 | . 1 . . . . 5 . . . 1 7 6 . Max in Single Turn 4 | . 1 . . . . 4 . . . 1 2 1 . Garrison Relay 5 | . . . . . . . . . . . 5 . . Phase Generator 1 | . . . . . . . . . . . 1 . . Machines Repaired . | . . . . . . . . . . . . . . Machines Dismantled . | . . . . . . . . . . . . . . Machines Sabotaged . | . . . . . . . . . . . . . . Overloaded Fab Kills . | . . . . . . . . . . . . . . Hacking | -11 -10 -9 -9 -9 -9 -6 -6 -6 -5 -5 -5 -5 -5 --------- Run | Yrd Mat Mat Sto Rec Scr Fac Low Zio Pro Fac Gar Fac Upp Machines Accessed 21 | . . . 2 12 3 1 . . . 1 1 . 1 Terminals 10 | . . . 2 6 . . . . . . 1 . 1 Fabricators . | . . . . . . . . . . . . . . Repair Stations 1 | . . . . . . 1 . . . . . . . Recycling Units 6 | . . . . 6 . . . . . . . . . Scanalyzers . | . . . . . . . . . . . . . . Garrison Access 1 | . . . . . . . . . . 1 . . . Total Hacks 42 | . . . 2 19 15 1 . . . 1 3 . 1 Successful 31 | . . . 2 11 15 1 . . . 1 . . 1 Failed 11 | . . . . 8 . . . . . . 3 . . Catastrophic . | . . . . . . . . . . . . . . Database Lockouts . | . . . . . . . . . . . . . . Manual 21 | . . . 1 19 . 1 . . . . . . . Terminals 16 | . . . 2 10 . . . . . . 3 . 1 Fabricators . | . . . . . . . . . . . . . . Repair Stations 1 | . . . . . . 1 . . . . . . . Recycling Units 9 | . . . . 9 . . . . . . . . . Scanalyzers . | . . . . . . . . . . . . . . Garrison Access 1 | . . . . . . . . . . 1 . . . Terminal Hacks 18 | . . . 2 . 15 . . . . . . . 1 Record 16 | . . . . . 15 . . . . . . . 1 Open Door 1 | . . . 1 . . . . . . . . . . Branch Access Points 1 | . . . 1 . . . . . . . . . . Fabricator Hacks . | . . . . . . . . . . . . . . Repair Station Hacks . | . . . . . . . . . . . . . . Recycling Unit Hacks . | . . . . . . . . . . . . . . Scanalyzer . | . . . . . . . . . . . . . . Garrison Access Hacks 1 | . . . . . . . . . . 1 . . . Unlock Access 1 | . . . . . . . . . . 1 . . . Unauthorized Hacks 12 | . . . . 11 . 1 . . . . . . . Terminals 6 | . . . . 6 . . . . . . . . . Botnet 6 | . . . . 6 . . . . . . . . . Fabricators . | . . . . . . . . . . . . . . Repair Stations 1 | . . . . . . 1 . . . . . . . Patch 1 | . . . . . . 1 . . . . . . . Recycling Units 5 | . . . . 5 . . . . . . . . . Tunnel 5 | . . . . 5 . . . . . . . . . Scanalyzers . | . . . . . . . . . . . . . . Garrison Access . | . . . . . . . . . . . . . . Data Cores Recovered . | . . . . . . . . . . . . . . Used . | . . . . . . . . . . . . . . Hacking Detections 8 | . . . 1 5 . . . . . 1 1 . . Full Trace Events 3 | . . . . 2 . . . . . . 1 . . Feedback Events . | . . . . . . . . . . . . . . Feedback Blocked . | . . . . . . . . . . . . . . Robot Schematics Acquired 3 | . . . . . . . . 3 . . . . . Robots Built . | . . . . . . . . . . . . . . Authchips . | . . . . . . . . . . . . . . Time . | . . . . . . . . . . . . . . Total Robot Build Rating . | . . . . . . . . . . . . . . Part Schematics Acquired 15 | . . . . . . . . 15 . . . . . Parts Built . | . . . . . . . . . . . . . . Authchips . | . . . . . . . . . . . . . . Time . | . . . . . . . . . . . . . . Total Part Build Rating . | . . . . . . . . . . . . . . Parts Repaired . | . . . . . . . . . . . . . . Time . | . . . . . . . . . . . . . . Parts Recycled . | . . . . . . . . . . . . . . Recycled Matter . | . . . . . . . . . . . . . . Retrieved Matter . | . . . . . . . . . . . . . . Retrieved Components . | . . . . . . . . . . . . . . Parts Scanalyzed . | . . . . . . . . . . . . . . Part Schematics Acquired . | . . . . . . . . . . . . . . Parts Damaged . | . . . . . . . . . . . . . . Bothacking | -11 -10 -9 -9 -9 -9 -6 -6 -6 -5 -5 -5 -5 -5 ------------ Run | Yrd Mat Mat Sto Rec Scr Fac Low Zio Pro Fac Gar Fac Upp Used RIF Installer 1 | . . . . . . . . . . . 1 . . Robots Hacked . | . . . . . . . . . . . . . . Non-combat . | . . . . . . . . . . . . . . Combat . | . . . . . . . . . . . . . . Robot Hacks Applied . | . . . . . . . . . . . . . . Relay Couplers Released 18 | . . . . . . . . . . . 18 . . Machine Destruction 18 | . . . . . . . . . . . 18 . . Fabnet Peak Effective % . | . . . . . . . . . . . . . . Robots Rewired 22 | . . . . 11 . . . . . . 11 . . Allies Hacked 1 | . . . . . . 1 . . . . . . . Hacks Repelled . | . . . . . . . . . . . . . . Allies | -11 -10 -9 -9 -9 -9 -6 -6 -6 -5 -5 -5 -5 -5 -------- Run | Yrd Mat Mat Sto Rec Scr Fac Low Zio Pro Fac Gar Fac Upp Total Allies 30 | . . . 2 11 . . . 6 . . 11 . . Largest Group 11 | . . . 2 11 10 6 . 6 5 . 8 8 . Highest-Rated Group 316 | . . . 62 185 179 116 . 159 129 . 316 316 . Highest-Rated Ally 51 | . . . 31 34 34 34 . 31 31 . 51 49 . Total Orders 2 | . . . . . 2 . . . . . . . . PICKUP 2 | . . . . . 2 . . . . . . . . Ally Attacks 175 | . . . 25 8 . 11 . . 32 . 33 66 . Total Damage 4348 | . . . 413 122 . 427 . . 543 . 791 2052 . Kills 29 | . . . 4 2 . 2 . . 1 . 6 14 . Allies Corrupted . | . . . . . . . . . . . . . . Allies Melted 1 | . . . . . . . . . . . . 1 . Intel | -11 -10 -9 -9 -9 -9 -6 -6 -6 -5 -5 -5 -5 -5 ------- Run | Yrd Mat Mat Sto Rec Scr Fac Low Zio Pro Fac Gar Fac Upp Active Infowar (turns) 6863 | . . . . . . . . 1362 887 355 3426 833 . Optics 6863 | . . . . . . . . 1362 887 355 3426 833 . Robot Analysis Total . | . . . . . . . . . . . . . . Derelict Logs Recovered 4 | . . . . . . . . 1 2 . . . 1 Drone Launches . | . . . . . . . . . . . . . . Drone Recoveries . | . . . . . . . . . . . . . . Exploration | -11 -10 -9 -9 -9 -9 -6 -6 -6 -5 -5 -5 -5 -5 ------------- Run | Yrd Mat Mat Sto Rec Scr Fac Low Zio Pro Fac Gar Fac Upp Turns Passed 17746 | 98 2337 274 723 2559 2321 933 1136 1565 972 355 3426 897 150 Spaces Moved 11865 | 83 913 168 492 2143 1999 610 769 1190 579 253 1752 615 299 Core 616 | 4 184 . . . . . . . . . . 129 299 Treads 819 | 6 31 21 3 . . 15 111 . 434 15 183 . . Legs 1614 | . . . . . . . . . . . 1128 486 . Wheels 8816 | 73 698 147 489 2143 1999 595 658 1190 145 238 441 . . Hover . | . . . . . . . . . . . . . . Flight . | . . . . . . . . . . . . . . Fastest Speed 50 | 50 100 95 100 100 115 115 130 130 115 115 120 50 50 Average Speed 129 | 103 204 115 102 110 115 129 133 130 144 131 152 105 50 Slowest Speed 550 | 160 550 240 225 115 115 156 156 130 152 152 400 120 50 Overloaded Moves . | . . . . . . . . . . . . . . Propulsion Burnouts . | . . . . . . . . . . . . . . Robots Hopped . | . . . . . . . . . . . . . . Potential Cave-ins 1 | . . . . . . . . . . . 1 . . Cave-ins Triggered . | . . . . . . . . . . . . . . Exploration Rate (%) 49 | 6 91 11 51 98 78 12 66 84 46 7 84 23 41 Regions Visited 13 Branch Regions 7 Pre-discovered Areas 7 | . . . . 5 . . . 1 1 . . . . Known Exits Taken 2 | . . . 1 . . . . . . 1 . . . Unknown Exits Taken 10 | 1 1 1 . 1 1 1 1 1 1 . . 1 . Scrap Searched 9 | . . . . . 4 . 1 2 1 . . . 1 Spaces Dug . | . . . . . . . . . . . . . . Terrain Destroyed 302 | . . . . . . 30 6 . 35 1 167 63 . Melee . | . . . . . . . . . . . . . . Projectile 63 | . . . . . . 9 6 . . 1 8 39 . AOE 239 | . . . . . . 21 . . 35 . 159 24 . Terrain Rammed . | . . . . . . . . . . . . . . Walls Destroyed . | . . . . . . . . . . . . . . Machines Disabled . | . . . . . . . . . . . . . . Actions | -11 -10 -9 -9 -9 -9 -6 -6 -6 -5 -5 -5 -5 -5 --------- Run | Yrd Mat Mat Sto Rec Scr Fac Low Zio Pro Fac Gar Fac Upp Total 13488 | 93 1232 213 599 2307 2023 682 811 1209 683 267 2303 767 299 Wait 723 | . 207 9 9 47 7 9 10 10 86 . 229 100 . Move 11848 | 82 912 167 491 2142 1998 609 768 1189 578 252 1747 614 299 Hop . | . . . . . . . . . . . . . . Pick Up 75 | 5 19 7 9 1 8 5 1 5 . 3 9 3 . Fast Attach 49 | 5 2 1 9 2 3 4 . . 1 2 18 2 . Attach 32 | . 6 4 . 1 . 6 2 1 2 3 3 4 . Detach 5 | . . . . 1 . 1 . . 1 2 . . . Swap 35 | . . 3 4 2 . 9 . 1 2 . 12 2 . Drop 82 | 1 4 5 22 3 7 11 . 3 . 1 22 3 . Fire 355 | . 82 17 55 10 . 28 30 . 13 4 77 39 . Melee . | . . . . . . . . . . . . . . Ram 2 | . . . . 2 . . . . . . . . . Kick 36 | . . . . . . . . . . . 36 . . Crush . | . . . . . . . . . . . . . . Escape Stasis 2 | . . . . . . . . . . . 2 . . Rewire 244 | . . . . 96 . . . . . . 148 . . Trap . | . . . . . . . . . . . . . . Miscellaneous . | . . . . . . . . . . . . . . Route ------- -11/Scrapyard -10/Materials (discovered 5 exits: [*Mat x3] / [*Min x2]) -9/Materials -9/Storage -9/Recycling (discovered 2 exits: [*Fac] / *Scr) -9/Scraptown -6/Factory -6/Lower Caves (discovered 2 exits: [*Low] / [*Zio]) -6/Zion -5/Proximity Caves -5/Factory -5/Garrison (discovered 3 exits: [*Fac x3]) -5/Factory -5/Upper Caves History --------- Turn | Location | Event 14 | -11/Scrapyard | Discovered new exit (range 16) 99 | -11/Scrapyard | Entered Materials 310 | -10/Materials | Build established: Mutant 484 | -10/Materials | Discovered new exit (range 7) 866 | -10/Materials | Discovered new exit (range 11) 1295 | -10/Materials | Discovered new exit (range 16) 2066 | -10/Materials | Discovered new exit (range 16) 2102 | -10/Materials | Core integrity fell below 50% 2403 | -10/Materials | Discovered new exit (range 16) 2436 | -10/Materials | Entered another Materials area 2436 | -9/Materials | Evolved 2 slots: Propulsion x1, Weapon x1 2468 | -9/Materials | Discovered new exit (range 9) 2710 | -9/Materials | Entered Storage 2720 | -9/Storage | Met a pair of Derelict thieves 2979 | -9/Storage | Garrison activated, responded to threat 2981 | -9/Storage | Build established: Tank 3378 | -9/Storage | Identified exit to Recycling 3430 | -9/Storage | Used back door to open Recycling access 3433 | -9/Storage | Entered Recycling 3434 | -9/Recycling | Joined Warlord attack on 0b10 via Recycling 3562 | -9/Recycling | Discovered new exit (range 16) 3970 | -9/Recycling | Build established: Commander-Tank 5904 | -9/Recycling | Scanned before Scraplab entrance 5931 | -9/Recycling | Entered Scraplab 5940 | -9/Recycling | Discovered new exit (range 4) 5992 | -9/Recycling | Entered Scraptown 5992 | -9/Scraptown | Accompanied by 10 allies 5992 | -9/Scraptown | System corruption cleaned by C-Scrubber 6383 | -9/Scraptown | Visited UFD Registry 6383 | -9/Scraptown | Registered with UFD as "Softcase" 6410 | -9/Scraptown | Visited SPCMW 6426 | -9/Scraptown | Visited Cave Peace 6852 | -9/Scraptown | Visited Junk Repository 6915 | -9/Scraptown | Visited Scrap Suit Storage 6938 | -9/Scraptown | Visited DA-N13 Charitable Foundation 6944 | -9/Scraptown | Found DCF Scrap (27 items) 7218 | -9/Scraptown | Visited Abandonware Association 7248 | -9/Scraptown | Learned abandonware demo "HACKBUD.EXE" 7248 | -9/Scraptown | Learned abandonware demo "POISON.EXE" 7312 | -9/Scraptown | Visited Scrapoid Research Area 7342 | -9/Scraptown | Visited Science Testing Area 7368 | -9/Scraptown | Visited Botcube Research 7739 | -9/Scraptown | Found Scrap Suit 7860 | -9/Scraptown | Visited Scrapoid Pod Storage 8132 | -9/Scraptown | Visited Infowarlord's Domain 8143 | -9/Scraptown | Found Exp. Sensor Array 8206 | -9/Scraptown | Met Optimus 8206 | -9/Scraptown | Accepted into 0bPrime 8296 | -9/Scraptown | Discovered new exit (range 5) 8313 | -9/Scraptown | Entered Factory 8313 | -6/Factory | Accompanied by 6 allies 8313 | -6/Factory | Evolved 6 slots: Propulsion x3, Utility x2, Weapon x1 8626 | -6/Factory | Build established: Commander-Gunner 8672 | -6/Factory | P-60 Hacker assimilated allied Savior 2a 8680 | -6/Factory | P-60 Hacker assimilated allied Savior 2b 8968 | -6/Factory | Build established: Gunner 9211 | -6/Factory | Discovered new exit (range 5) 9246 | -6/Factory | Entered Lower Caves 10174 | -6/Lower Caves | Attracted the attention of an 0b10 checkpoint 10374 | -6/Lower Caves | Discovered new exit (range 7) 10375 | -6/Lower Caves | A Derelict revealed a hidden shortcut to a safe place 10382 | -6/Lower Caves | Entered Zion 10457 | -6/Zion | System corruption cleaned by Quarantine Array 10616 | -6/Zion | Found Exp. Signal Interpreter 10619 | -6/Zion | Found Prototype Processor 11499 | -6/Zion | Learned location of Warlord (-4) 11742 | -6/Zion | Gained Derelict followers 11766 | -6/Zion | Discovered new exit (range 12) 11947 | -6/Zion | Entered Proximity Caves 11947 | -5/Proximity Caves | Accompanied by 5 allies 12026 | -5/Proximity Caves | Spotter reported a threat 12123 | -5/Proximity Caves | Lost 5 allies 12163 | -5/Proximity Caves | Received a Behemoth hack from an annoying Tinkerer 12181 | -5/Proximity Caves | Spotter reported a threat 12203 | -5/Proximity Caves | Learned Factory garrison access intel 12234 | -5/Proximity Caves | Spotter reported a threat 12334 | -5/Proximity Caves | Spotted B-75 Beast 12420 | -5/Proximity Caves | Spotter reported a threat 12462 | -5/Proximity Caves | Destroyed B-75 Beast 12654 | -5/Proximity Caves | Spotter reported a threat 12886 | -5/Proximity Caves | Discovered new exit (range 15) 12919 | -5/Proximity Caves | Entered Factory 12919 | -5/Factory | Evolved 2 slots: Utility x2 12920 | -5/Factory | Loaded intel: 4 garrison access locations 13219 | -5/Factory | Search patrols dispatched 13243 | -5/Factory | Build established: Tank 13273 | -5/Factory | Identified exit to Garrison 13274 | -5/Factory | Entered Garrison 13304 | -5/Garrison | Triggered checkpoint 13353 | -5/Garrison | Garrison Relay disabled 13479 | -5/Garrison | Garrison Relay disabled 13656 | -5/Garrison | Triggered checkpoint 13704 | -5/Garrison | Destroyed 7 combat bots 13710 | -5/Garrison | Lost 3 parts (3n) 13741 | -5/Garrison | Build established: Scavenger-Tank 13850 | -5/Garrison | Discovered new exit (range 12) 13898 | -5/Garrison | Triggered checkpoint 13927 | -5/Garrison | Garrison Relay disabled 14140 | -5/Garrison | Lost 4 parts (2n1u1w) 14342 | -5/Garrison | Discovered new exit (range 12) 14956 | -5/Garrison | Triggered checkpoint 15008 | -5/Garrison | Lost 3 parts (1n2w) 15026 | -5/Garrison | Garrison Relay disabled 15366 | -5/Garrison | Triggered checkpoint 15635 | -5/Garrison | Phase Generator disabled 15642 | -5/Garrison | Discovered new exit (range 12) 15665 | -5/Garrison | Attempted to access garrison exit controls, blocked by remote lockdown 15712 | -5/Garrison | Lost 3 allies 15725 | -5/Garrison | Lost 3 parts (1n2w) 16040 | -5/Garrison | Triggered checkpoint 16054 | -5/Garrison | Installed Relay Interface Framework 16091 | -5/Garrison | Build established: Commander-Tank 16091 | -5/Garrison | Garrison Relay disabled 16700 | -5/Garrison | Entered Factory 16700 | -5/Factory | Accompanied by 8 allies 16909 | -5/Factory | Spotted B-75 Beast 16941 | -5/Factory | Allies destroyed B-75 Beast 16973 | -5/Factory | Lost 3 allies 17000 | -5/Factory | First assault squad dispatched 17095 | -5/Factory | Garrison activated, responded to threat 17169 | -5/Factory | Lost 4 allies 17418 | -5/Factory | Build established: Tank 17482 | -5/Factory | System corruption reached 10% 17524 | -5/Factory | Cargo convoy interrupted 17530 | -5/Factory | High security lockdown imminent 17533 | -5/Factory | Released all parts (5) 17534 | -5/Factory | Core integrity fell below 50% 17563 | -5/Factory | Lost 14 parts (1p5n3u5w) 17574 | -5/Factory | Core integrity fell below 20% 17592 | -5/Factory | Discovered new exit (range 10) 17597 | -5/Factory | Entered Upper Caves 17689 | -5/Upper Caves | Spotted B-75 Beast 17747 | -5/Upper Caves | Destroyed by B-75 Beast with Magnetic Acceleration Cannon Last Messages --------------- LOCATION=UNKNOWN GOAL=ESCAPE 17598_ Acquired derelict log, extracted data. Data stored: Armory entrances (x1). 17602_ Connecting with Outpost Terminal... 17602_ Current location identified: Upper Caves >>Query($taT^5 R3pOr+ 0000) .sisT3m C0rRvpTE_ 17607_ System corrupted: Matter fused (-8). 17638_ System corrupted: Heat flow error (+125). 17639_ A3-NRW(k) breaks down the debris. 17654_ 37-H3D(k) breaks down the debris. 17685_ Searching scrap... 17685_ Found Imp. System Shield. 17685_ Found 64 Matter. 17695_ System corrupted: Heat flow error (+292). 17710_ System corrupted: Energy discharge (-22). 17722_ Acquired 1 matter. 17728_ XMAQ6D9O0XN=JSNYY6UXGF